Cogmind - Beta 16 @@@ ROGUE MODE // 2026.02.09 @ 10:48:10 Player: ZLD1 Result: Destroyed by S-27 Virus with Autogun Performance ------------- Evolutions (4) 2000 Regions Visited (6) 1200 Robots Destroyed (7) 35 Value Destroyed (260) 260 Prototype IDs (7) 140 Alien Tech Used (0) 0 Bonus (1070) 1070 TOTAL SCORE: 4705 Bonus ------- Pacifist 270 Registered with UFD 300 Met Optimus in HQ 500 Cogmind --------- Core Integrity 0/850 Matter 299/300 Energy 99/100 System Corruption 3% Temperature Cool (0) Movement Core (100) Ox1 Location -6/Lower Caves Parts ------- > --- POWER (2) -------- (None) > --- PROPULSION (5) --- (None) > --- UTILITY (6) ------ Small Storage Unit A0-MCA's Component Scanner > --- WEAPON (2) ------- (None) > --- INVENTORY (8) ---- Improved Carbon-fiber Leg Power Amplifier Advanced Weight Redist. System Botcube Peak State ------------ > --- POWER ------------ Light Ion Engine Angular Momentum Engine > --- PROPULSION ------- Improved Aluminum Leg Improved Carbon-fiber Leg Gravmag Array > --- UTILITY ---------- Small Storage Unit Advanced Weight Redist. System Seismic Detector Microactuators Layered Medium Armor Plating A0-MCA's Component Scanner > --- WEAPON ----------- Hammer Mace > --- INVENTORY -------- Light Fission Core Power Amplifier Advanced Weight Redist. System Botcube [Rating: 50] Favorites ----------- Power Light Ion Engine Engine Light Ion Engine Power Core Light Fission Core Propulsion Hover Unit Leg Improved Aluminum Leg Hover Unit Hover Unit Utility Small Storage Unit Device Seismic Detector Storage Small Storage Unit Processor A0-MCA's Component Scanner Protection Layered Medium Armor Plating Weapon Mace Impact Weapon Mace Build | -11 -10 -10 -10 -9 -6 -6 ------- Run | Yrd Mat Min Sub Scr Fac Low Slots Evolved 8 | . . . . . 8 . Power 1 | . . . . . 1 . Propulsion 3 | . . . . . 3 . Utility 4 | . . . . . 4 . Weapon . | . . . . . . . Parts Attached 18 | . 5 . . 3 10 . Power 4 | . 1 . . . 3 . Engine 3 | . 1 . . . 2 . Core 1 | . . . . . 1 . Reactor . | . . . . . . . Propulsion 6 | . 2 . . 1 3 . Treads . | . . . . . . . Leg 2 | . . . . . 2 . Wheel . | . . . . . . . Hover 4 | . 2 . . 1 1 . Flight . | . . . . . . . Utility 6 | . 2 . . . 4 . Device 3 | . 1 . . . 2 . Storage 1 | . 1 . . . . . Processor 1 | . . . . . 1 . Hackware . | . . . . . . . Protection 1 | . . . . . 1 . Artifact . | . . . . . . . Weapon 2 | . . . . 2 . . Energy Gun . | . . . . . . . Energy Cannon . | . . . . . . . Ballistic Gun . | . . . . . . . Ballistic Cannon . | . . . . . . . Launcher . | . . . . . . . Special Weapon . | . . . . . . . Impact Weapon 2 | . . . . 2 . . Slashing Weapon . | . . . . . . . Piercing Weapon . | . . . . . . . Special Melee Weapon . | . . . . . . . Unidentified Prototypes . | . . . . . . . Parts Lost 15 | . . . . . 12 3 Power 4 | . . . . . 3 1 Propulsion 5 | . . . . . 5 . Utility 4 | . . . . . 2 2 Weapon 2 | . . . . . 2 . Highest Loss Streak 9 | . . . . . 9 2 To Critical Strikes . | . . . . . . . Average Backups 5 | 3 4 4 4 6 4 3 Power 1 | 1 1 1 1 1 1 . Propulsion 2 | 1 2 2 2 2 1 1 Utility 1 | . 1 1 1 1 1 2 Weapon . | . . . . . . . Tool/Special . | . . . . . . . Unused Backups 6 | . . . . 4 . 2 Power . | . . . . . . . Propulsion 2 | . . . . 2 . . Utility 3 | . . . . 1 . 2 Weapon 1 | . . . . 1 . . Tool/Special . | . . . . . . . Average Slot Usage (%) 75 | . 35 71 71 86 78 19 Engine 11 | . 8 14 14 14 11 . Leg 1 | . . . . . 4 . Hover 20 | . 14 28 28 28 12 . Device 14 | . 5 14 14 14 18 5 Storage 10 | . 7 14 14 14 6 6 Processor 2 | . . . . . 5 6 Protection 1 | . . . . . 4 . Impact Weapon 11 | . . . . 15 12 . Peak Build Rating 50 | . 5 5 5 12 50 24 Average Rating 18 | . 3 5 5 8 37 14 On Entrance 7 | . . 5 5 5 12 24 Avg Prop Armor Cover (%) 5 | . . . . . 5 . Naked Turns 14 | . 14 . . . . . Heaviest Build 36 | . 9 9 9 13 36 14 Greatest Support 40 | 3 12 12 12 13 40 12 Greatest Overweight (x) 1 | . . . . . 1 1 Average Overweight (x) . | . . . . . . . Largest Inventory Capacity 8 | 5 8 8 8 8 8 8 Average Capacity 7 | 5 6 8 8 8 8 8 Most Carried 8 | 5 5 4 5 8 8 4 Average Carried 5 | 3 4 4 4 7 4 4 Final Capacity 8 | 5 8 8 8 8 8 8 Final Carried 8 | 5 4 4 5 8 4 4 Class Distribution -------------------- 68% | Mutant 31% | Gladiator Dominant Class ---------------- Mutant | -10/Materials Mutant | -10/Mines Mutant | -10/Subcaves Mutant | -9/Scraptown Gladiator | -6/Factory Mutant | -6/Lower Caves Resources | -11 -10 -10 -10 -9 -6 -6 ----------- Run | Yrd Mat Min Sub Scr Fac Low Matter Collected 363 | 200 . . . 80 83 . Remotely . | . . . . . . . Salvage Created 207 | . . . . . 207 . Parts 2 | . . . . . 2 . Haulers Intercepted . | . . . . . . . Recyclers Shooed 1 | . . . . . 1 . Parts Field Recycled . | . . . . . . . Retrieved Matter . | . . . . . . . Parts Self-Destructed . | . . . . . . . Prevented . | . . . . . . . Parts Restored . | . . . . . . . Kills | -11 -10 -10 -10 -9 -6 -6 ------- Run | Yrd Mat Min Sub Scr Fac Low Combat Hostiles Destroyed 6 | . . . . . 6 . Melee 2 | . . . . . 2 . Classes Destroyed 4 | . . . . . 4 . Builder 1 | . . . . . 1 . Swarmer 3 | . . . . . 3 . Sentry 1 | . . . . . 1 . Programmer 2 | . . . . . 2 . Best Kill Streak 2 | . . . . . 2 . Combat Bots Only 2 | . . . . . 2 . Max Kills in Single Turn 1 | . . . . . 1 . Gunslinging . | . . . . . . . Exploded . | . . . . . . . Melee 1 | . . . . . 1 . Uniques/NPCs Destroyed . | . . . . . . . Combat | -11 -10 -10 -10 -9 -6 -6 -------- Run | Yrd Mat Min Sub Scr Fac Low Hostile Shots Fired 308 | . . . . . 229 79 Missed 107 | . . . . . 73 34 Hits 201 | . . . . . 156 45 Projectile 201 | . . . . . 156 45 AOE 2 | . . . . . 2 . Critical Strikes 2 | . . . . . 2 . Part Disruptions 1 | . . . . . 1 . Damage Taken 2232 | . . . . . 1579 653 Core 862 | . . . . . 373 489 Absorbed by Shields . | . . . . . . . Regen/Repaired (Parts) 32 | . . . . 32 . . Core Remaining (%) 100 | 100 . . . 100 . . Volleys Fired . | . . . . . . . Largest . | . . . . . . . Hottest . | . . . . . . . Shots Fired . | . . . . . . . Gun . | . . . . . . . Cannon . | . . . . . . . Launcher . | . . . . . . . Special . | . . . . . . . Kinetic . | . . . . . . . Thermal . | . . . . . . . Explosive . | . . . . . . . Electromagnetic . | . . . . . . . Robot Hit Streak . | . . . . . . . Robot Miss Streak . | . . . . . . . Penetration Max . | . . . . . . . Secondary Targets . | . . . . . . . Shots Hit Robots 51 | . . . . . 51 . Core Hits 5 | . . . . . 5 . Critical Kills . | . . . . . . . Critical Parts Destroyed 7 | . . . . . 7 . Critical Strikes 7 | . . . . . 7 . Smash 7 | . . . . . 7 . Melee Attacks 65 | . . . . . 65 . Impact 65 | . . . . . 65 . Slashing . | . . . . . . . Piercing . | . . . . . . . Sneak Attacks 4 | . . . . . 4 . Combat Hostiles . | . . . . . . . Follow-up Attacks 12 | . . . . . 12 . Damage Inflicted 1387 | . . . . . 1387 . Guns . | . . . . . . . Cannons . | . . . . . . . Explosions . | . . . . . . . Melee 1387 | . . . . . 1387 . Ramming . | . . . . . . . Kinetic . | . . . . . . . Thermal . | . . . . . . . Explosive . | . . . . . . . Electromagnetic . | . . . . . . . Impact 1387 | . . . . . 1387 . Slashing . | . . . . . . . Piercing . | . . . . . . . Highest Corruption 3 | . . . . . 3 3 Average Corruption 2 | . . . . . 1 3 Corruption Purged . | . . . . . . . Corruption Blocked . | . . . . . . . Effects 6 | . . . . . 4 2 Message Errors 1 | . . . . . 1 . Matter Fused 2 | . . . . . 1 1 Heat Flow Errors 2 | . . . . . 2 . Data Loss (minor) 1 | . . . . . . 1 Overload Shots . | . . . . . . . Overflow Damage 253 | . . . . . 253 . Projectiles . | . . . . . . . Explosions . | . . . . . . . Melee 253 | . . . . . 253 . Knockbacks 5 | . . . . . 5 . Impact 5 | . . . . . 5 . Kinetic . | . . . . . . . Secondary . | . . . . . . . Self-Inflicted Damage . | . . . . . . . Shots . | . . . . . . . Rammed . | . . . . . . . Targets Rammed . | . . . . . . . Kicked . | . . . . . . . Crushed . | . . . . . . . Highest Temperature 268 | . . . . . 268 . Average Temperature 127 | . . . . . 127 . Received Heat Transfer 252 | . . . . . 252 . Siege Activations . | . . . . . . . Martial Activations . | . . . . . . . Shielding Activations . | . . . . . . . Robots Disrupted . | . . . . . . . Combat Hostiles . | . . . . . . . Robots Corrupted 5 | . . . . . 5 . Combat Hostiles 4 | . . . . . 4 . Parts Fried 3 | . . . . . 3 . Impact Corruptions 19 | . . . . . 19 . Robots Melted . | . . . . . . . Combat Hostiles . | . . . . . . . Parts Melted . | . . . . . . . Heat Transferred . | . . . . . . . Parts Sabotaged . | . . . . . . . Parts Stolen . | . . . . . . . Parts Stripped . | . . . . . . . Power Chain Reactions . | . . . . . . . Alert | -11 -10 -10 -10 -9 -6 -6 ------- Run | Yrd Mat Min Sub Scr Fac Low Maximum Alert Level . | . . . . . . . Low Security (%) 100 | 100 100 100 . . 100 . Level 1 . | . . . . . . . Level 2 . | . . . . . . . Level 3 . | . . . . . . . Level 4 . | . . . . . . . Level 5 . | . . . . . . . High Security . | . . . . . . . Max Security . | . . . . . . . Peak Influence 145 | . . . . . 145 . Initial . | . . . . . . . Average 39 | . . . . . 49 . Influence Increases 305 | . . . . . 275 30 Destroy 0b10 Robot/C 120 | . . . . . 120 . Destroy 0b10 Robot/NC 5 | . . . . . 5 . Destroy Leader 30 | . . . . . 30 . Lose Combat Pursuer 150 | . . . . . 120 30 Influence Decreases 305 | . . . . . 260 45 Entered New Map 6 | . . . . . . 6 Time Decay 228 | . . . . . 208 20 Lost Part 71 | . . . . . 52 19 Squads Dispatched 1 | . . . . . 1 . Investigation . | . . . . . . . Extermination 1 | . . . . . 1 . Reinforcement . | . . . . . . . Assault . | . . . . . . . Garrison . | . . . . . . . Intercept . | . . . . . . . Searches Triggered . | . . . . . . . Construction Impeded . | . . . . . . . Haulers Reinforced . | . . . . . . . Active Scanning Responses . | . . . . . . . Cargo Convoy Interrupts . | . . . . . . . Stealth | -11 -10 -10 -10 -9 -6 -6 --------- Run | Yrd Mat Min Sub Scr Fac Low Distress Signals 1 | . 1 . . . . . Communications Jammed . | . . . . . . . Distress Signals . | . . . . . . . Times Spotted 23 | . 3 . . . 15 5 Peak Tracking Total 7 | . 5 . . . 7 3 Tactical Retreats 4 | . . . . . 3 1 Traps | -11 -10 -10 -10 -9 -6 -6 ------- Run | Yrd Mat Min Sub Scr Fac Low Traps Triggered . | . . . . . . . Indirectly . | . . . . . . . Trap Hack Attempts . | . . . . . . . Triggered . | . . . . . . . Disarmed . | . . . . . . . Reprogrammed . | . . . . . . . Reused . | . . . . . . . Traps Extracted . | . . . . . . . Installed . | . . . . . . . Triggered . | . . . . . . . Machines | -11 -10 -10 -10 -9 -6 -6 ---------- Run | Yrd Mat Min Sub Scr Fac Low Machines Disabled . | . . . . . . . Max in Single Turn . | . . . . . . . Garrison Access 1 | . . . . . 1 . Machines Repaired . | . . . . . . . Machines Dismantled . | . . . . . . . Machines Sabotaged . | . . . . . . . Overloaded Fab Kills . | . . . . . . . Hacking | -11 -10 -10 -10 -9 -6 -6 --------- Run | Yrd Mat Min Sub Scr Fac Low Machines Accessed 10 | . . . . 8 2 . Terminals 1 | . . . . . 1 . Fabricators . | . . . . . . . Repair Stations . | . . . . . . . Recycling Units . | . . . . . . . Scanalyzers . | . . . . . . . Garrison Access 1 | . . . . . 1 . Total Hacks 47 | . . . . 45 2 . Successful 47 | . . . . 45 2 . Failed . | . . . . . . . Catastrophic . | . . . . . . . Database Lockouts . | . . . . . . . Manual 1 | . . . . 1 . . Terminals 1 | . . . . . 1 . Fabricators . | . . . . . . . Repair Stations . | . . . . . . . Recycling Units . | . . . . . . . Scanalyzers . | . . . . . . . Garrison Access 1 | . . . . . 1 . Terminal Hacks 46 | . . . . 45 1 . Record 39 | . . . . 38 1 . Robot Analysis 6 | . . . . 6 . . Proto ID Catalog 1 | . . . . 1 . . Fabricator Hacks . | . . . . . . . Repair Station Hacks . | . . . . . . . Recycling Unit Hacks . | . . . . . . . Scanalyzer . | . . . . . . . Garrison Access Hacks 1 | . . . . . 1 . Seal Access 1 | . . . . . 1 . Unauthorized Hacks . | . . . . . . . Terminals . | . . . . . . . Fabricators . | . . . . . . . Repair Stations . | . . . . . . . Recycling Units . | . . . . . . . Scanalyzers . | . . . . . . . Garrison Access . | . . . . . . . Data Cores Recovered . | . . . . . . . Used . | . . . . . . . Hacking Detections . | . . . . . . . Full Trace Events . | . . . . . . . Feedback Events . | . . . . . . . Feedback Blocked . | . . . . . . . Robot Schematics Acquired . | . . . . . . . Robots Built . | . . . . . . . Authchips . | . . . . . . . Time . | . . . . . . . Total Robot Build Rating . | . . . . . . . Part Schematics Acquired . | . . . . . . . Parts Built . | . . . . . . . Authchips . | . . . . . . . Time . | . . . . . . . Total Part Build Rating . | . . . . . . . Part Studies Acquired . | . . . . . . . Parts Repaired . | . . . . . . . Time . | . . . . . . . Parts Recycled . | . . . . . . . Recycled Matter . | . . . . . . . Retrieved Matter . | . . . . . . . Retrieved Components . | . . . . . . . Parts Scanalyzed . | . . . . . . . Part Schematics Acquired . | . . . . . . . Parts Damaged . | . . . . . . . Bothacking | -11 -10 -10 -10 -9 -6 -6 ------------ Run | Yrd Mat Min Sub Scr Fac Low Used RIF Installer . | . . . . . . . Robots Hacked . | . . . . . . . Non-combat . | . . . . . . . Combat . | . . . . . . . Robot Hacks Applied . | . . . . . . . Relay Couplers Released . | . . . . . . . Fabnet Peak Effective % . | . . . . . . . Robots Rewired . | . . . . . . . Allies Hacked . | . . . . . . . Hacks Repelled . | . . . . . . . Allies | -11 -10 -10 -10 -9 -6 -6 -------- Run | Yrd Mat Min Sub Scr Fac Low Total Allies . | . . . . . . . Largest Group . | . . . . . . . Highest-Rated Group . | . . . . . . . Highest-Rated Ally . | . . . . . . . Total Orders . | . . . . . . . Ally Attacks . | . . . . . . . Total Damage . | . . . . . . . Kills . | . . . . . . . Allies Corrupted . | . . . . . . . Allies Melted . | . . . . . . . Intel | -11 -10 -10 -10 -9 -6 -6 ------- Run | Yrd Mat Min Sub Scr Fac Low Active Infowar (turns) 1461 | . 33 54 94 760 520 . Seismic 1461 | . 33 54 94 760 520 . Robot Analysis Total 6 | . . . . 6 . . Derelict Logs Recovered 2 | . . 1 1 . . . Drone Launches . | . . . . . . . Drone Recoveries . | . . . . . . . Exploration | -11 -10 -10 -10 -9 -6 -6 ------------- Run | Yrd Mat Min Sub Scr Fac Low Turns Passed 1675 | 25 71 54 94 760 579 92 Spaces Moved 2082 | 39 117 28 143 1294 336 125 Core 235 | 39 43 . . . 28 125 Treads . | . . . . . . . Legs 45 | . . . . . 45 . Wheels . | . . . . . . . Hover 1802 | . 74 28 143 1294 263 . Flight . | . . . . . . . Fastest Speed 50 | 50 50 56 56 56 52 50 Average Speed 61 | 50 53 56 56 56 85 72 Slowest Speed 190 | 50 60 56 56 56 190 100 Overloaded Moves . | . . . . . . . Propulsion Burnouts . | . . . . . . . Robots Hopped . | . . . . . . . Potential Cave-ins . | . . . . . . . Cave-ins Triggered . | . . . . . . . Exploration Rate (%) 24 | 3 28 10 8 89 12 21 Regions Visited 6 Branch Regions 4 Pre-discovered Areas 3 | . . . . 3 . . Known Exits Taken . | . . . . . . . Unknown Exits Taken 6 | 1 1 1 1 1 1 . Scrap Searched 6 | . . . . 6 . . Spaces Dug . | . . . . . . . Terrain Destroyed . | . . . . . . . Melee . | . . . . . . . Projectile . | . . . . . . . AOE . | . . . . . . . Terrain Rammed . | . . . . . . . Walls Destroyed . | . . . . . . . Machines Disabled . | . . . . . . . Actions | -11 -10 -10 -10 -9 -6 -6 --------- Run | Yrd Mat Min Sub Scr Fac Low Total 2399 | 43 123 65 156 1330 555 127 Wait 219 | . . 38 13 21 145 2 Move 2076 | 38 116 27 142 1293 335 125 Hop . | . . . . . . . Pick Up 22 | 5 2 . 1 8 6 . Fast Attach 4 | . 2 . . 1 1 . Attach 16 | . 3 . . 1 12 . Detach 2 | . . . . . 2 . Swap 1 | . . . . 1 . . Drop 6 | . . . . 5 1 . Fire . | . . . . . . . Melee 53 | . . . . . 53 . Ram . | . . . . . . . Kick . | . . . . . . . Crush . | . . . . . . . Escape Stasis . | . . . . . . . Rewire . | . . . . . . . Trap . | . . . . . . . Miscellaneous . | . . . . . . . Route ------- -11/Scrapyard -10/Materials -10/Mines -10/Subcaves (discovered 2 exits: Rec / *Scr) -9/Scraptown (discovered 2 exits: *Fac x2) -6/Factory -6/Lower Caves History --------- Turn | Location | Event 18 | -11/Scrapyard | Discovered new exit (range 15) 26 | -11/Scrapyard | Entered Materials 92 | -10/Materials | Discovered new exit (range 9) 97 | -10/Materials | Entered Mines 108 | -10/Mines | Learned Materials terminal intel 142 | -10/Mines | Discovered new exit (range 4) 151 | -10/Mines | Entered Subcaves 152 | -10/Subcaves | Shifting Twisted Machinery released Ripper 152 | -10/Subcaves | Shifting Twisted Machinery released Barrage Gun 152 | -10/Subcaves | Approached by a straggling Scientist 181 | -10/Subcaves | Identified exit to Recycling 245 | -10/Subcaves | Entered Scraptown 303 | -9/Scraptown | Build established: Mutant 442 | -9/Scraptown | Discovered new exit (range 5) 497 | -9/Scraptown | Visited CR-KLE's Repair Center 501 | -9/Scraptown | CR-KLE repaired 1 part 514 | -9/Scraptown | Visited Awakened 517 | -9/Scraptown | Visited Scrapoid Research Area 523 | -9/Scraptown | Visited Cyclists 536 | -9/Scraptown | Visited UFD Registry 539 | -9/Scraptown | Registered with UFD as "Nullmod" 548 | -9/Scraptown | Entered Cyclist Reading Room 551 | -9/Scraptown | Learned location of Exiles (-9) 551 | -9/Scraptown | Learned location of Zion (-6) 640 | -9/Scraptown | Visited Science Testing Area 644 | -9/Scraptown | Visited Spacefarers 655 | -9/Scraptown | Visited SPCMW 702 | -9/Scraptown | Visited Abandonware Association 710 | -9/Scraptown | Learned abandonware demo "REPAIR.EXE" 710 | -9/Scraptown | Learned abandonware demo "REBOOT5.EXE" 725 | -9/Scraptown | Visited Botcube Research 732 | -9/Scraptown | Found Botcube 744 | -9/Scraptown | Visited Analyses Database 758 | -9/Scraptown | Visited Science Guys 778 | -9/Scraptown | Visited Supply Room 796 | -9/Scraptown | Visited Derelict Rescue Squad 810 | -9/Scraptown | Visited A0-MCA Data Center 814 | -9/Scraptown | Given a B rating by A0-MCA 819 | -9/Scraptown | Found A0-MCA's Component Scanner 866 | -9/Scraptown | Visited Research Penetration Think Tank 882 | -9/Scraptown | Visited DA-N13 Charitable Foundation 901 | -9/Scraptown | Found DCF Scrap (27 items) 917 | -9/Scraptown | Visited Chapter 10 949 | -9/Scraptown | Met Optimus 949 | -9/Scraptown | Accepted into 0bPrime 989 | -9/Scraptown | Discovered new exit (range 3) 1005 | -9/Scraptown | Entered Factory 1005 | -6/Factory | Evolved 8 slots: Power x1, Propulsion x3, Utility x4 1269 | -6/Factory | Lost 3 parts (1p2n) 1307 | -6/Factory | Build established: Gladiator 1456 | -6/Factory | Discovered new exit (range 9) 1584 | -6/Factory | Entered Lower Caves 1587 | -6/Lower Caves | Lost 9 parts (2p3n2u2w) 1603 | -6/Lower Caves | Core integrity fell below 50% 1620 | -6/Lower Caves | Entered a destroyed Warlord outpost 1639 | -6/Lower Caves | Core integrity fell below 20% 1676 | -6/Lower Caves | Destroyed by S-27 Virus with Autogun Last Messages --------------- 01555_ Terminal disabled. 01555_ R-10 Processor collects Sml. Matter Pod. 01556_ Seismic Detector destroyed. 01558_ R-10 Processor collects Lgt. Ion Engine. 01559_ U-05 Engineer lays Concrete. 01562_ Y-54 Guardian misfires. 01564_ U-05 Engineer lays Concrete. 01564_ Acquired 8 matter. 01565_ U-05 Engineer lays Concrete. 01565_ R-10 Processor collects Wheel. 01572_ ALERT: Cargo convoy en route, clear transfer corridor. LOCATION=UNKNOWN GOAL=ESCAPE [Achievement: Deductive Reasoning] 01590_ Microactuators destroyed. 01592_ Lgt. Fission Core destroyed. 01619_ System corrupted: Matter fused (-6). 01635_ Adv. Weight Redist. System destroyed. 01665_ System corrupted: Component data lost. Map ----- +----------------------------------------------------+ | ?????????????????????????????????????????????????? | | ?????????????????????????????????????????????????? | | ?????????????????????????????????????????????????? | | ?????????????????????????????????????????????????? | | ?????????????????????????????????????????????????? | | ?????????????????????????????????????????????????? | | ?????????????????????????????????????????????????? | | ?????????????????????????????????????????????????? | | ?????????????????????????????????????????????????? | | ?????????????????????????????????????????????????? | | ?????????????????????????????????????????????????? | | ?????????????????????????????????????????????????? | | ?????????????????????????????????????????????????? | | ?????????????????????????????????????????????????? | | ?????????????????????????????????????????????????? | | ?????????????????????????????????????????????????? | | ??????????????????????????########???????????????? | | ????????????????????##???## ## #???????????????? | | ????????????????????# #### ##??????????????? | | ????????????????????# ##?????????????? | | ???????????????????## s ###???????????? | | ???????????#?????### s### ##??????????? | | ???????????# ## s ######## #??????????? | | ???????????# ####??## #??????????? | | ???????????# #???# ##??????????? | | ??????????# ## @ #???# ##???####????? | | ????????? #?# #???# #????# ####? | | ?????????? ??# #??# ####??# ## | | ?????????? ## ???# #??# # ##?# | | ?????????????## ??? ##??# ### | | ??????????????### ???? ##???## ## | | ???????????????? ???? ##?##### # | | ??????????????? ???? ##?## ### ## | | ?????????????? " ???? #??# ###" | | ?????????????? ????? #?# ## ###" | | ???????????????????? ?# ?## ## | | ???????????????????? ??### ## # | | ??????????????????? ????## # X ### | | ??????????????????? ## ### ????# #"" #### | | ????????????????????? ?# ??# ??# #"##### | | ????????????????????????? ?? ## ?# ### # | | ??????????????????????????? #?## # ## | | ?????????????????????????? ??????# ## #X" | | ????????????????????????? ???????# #### | | ??????????????????????????????????# | | ??????????????????????????????????# ## ## | | ?????????????????????????????????# ?##?# ### | | ?????????????????????????????????# ?????# #? | | ?????????????????????????????????##?????# # | | ??????????????????????????????????????? # | +----------------------------------------------------+ Best States ------------- Heat Dissipation 37 Energy Generation 23 Energy Capacity 325 Matter Stores 300 Matter Capacity 300 Sight Range 16 Terrain Scan Density 10 Additional Mass Support 9 Armor Coverage 225 Melee Speed Boost 20 Evasion (%) 54 Item Schematics ----------------- None Robot Schematics ------------------ None Fabricated ------------ Nothing Repaired ---------- Nothing Studied --------- None Alien Tech Used ----------------- None Achievements -------------- Bob, First Of His Name Deductive Reasoning I Have A Map? Challenges ------------ None Game ------ Seed TimingAluminumMegatreads Manual? 0 Play Time 00:27:27 Cumulative 67.9 hours Start 2026.02.09 @ 10:20:20 End 2026.02.09 @ 10:48:10 Sessions 1 Manual Loads 0 Difficulty Rogue Special Mode None Game No. 163 Rogue 163 Adventurer 0 Explorer 0 Win Type - Total 1 Types 1/0/0/0/0/0/0/0/0/0 Lore% 39 Gallery% 38 Achievement% 23 Wizard Run 0 Options --------- Layout 1 ASCII 0 Keyboard 0 Movement Mouse Keybinds 0 Fullscreen 0 Font 24/Smallcaps Map View 59x39 Zoom Use 0% Tactical HUD 1 Map Filters NONE Filters NONE Steam 1 RUN: 07b2fe87-3411-4ba2-a660-c24f3cc71aa4